[Event "61st Mongolian-ch Open 2023"]
[Site "Khovd"]
[Date "2023.05.24"]
[Round "6.3"]
[White "Gan-Erdene, Sugar"]
[Black "Ulziikhishig Khishigbat"]
[Result "0-1"]
[ECO "A84"]
[WhiteElo "2420"]
[BlackElo "1601"]
[Annotator "TA"]
[PlyCount "96"]
[EventDate "2023.05.22"]
[EventType "tourn"]
[EventCountry "MGL"]
[SourceTitle "playchess.com"]
[Source "ChessBase"]
[SourceQuality "1"]
[TimeControl "40/5400+30:1800+30"]

{[%evp 14,96,-7,-6,-14,-9,-11,-29,-25,-27,-31,-39,5,8,12,-18,-17,-20,-22,-4,-21,-60,-61,-83,-91,-84,-75,-102,-95,-105,-103,-177,-166,-164,-165,-192,-179,-214,-179,-233,-184,-207,-183,-222,-221,-220,-230,-248,-196,-199,-194,-179,-174,-227,-145,-295,-285,-397,-385,-404,-409,-395,-406,-493,-493,-453,-418,-410,-387,-453,-453,-456,-460,-452,-442,-448,-422,-531,-533,-548,-526,-488,-482,-641,-642]} 1. d4 {[%emt 0:00:02]} e6 {[%emt 0:00:13]} 2. c4 {[%emt 0:01:03]} b6 {[%emt 0:00:12]} 3. Nf3 {[%emt 0:03:26]} Bb7 {[%emt 0:00:19]} 4. g3 {[%emt 0:00:08]} f5 {[%emt 0:00:41]} 5. Bg2 {[%emt 0:00:06]} Bb4+ {[%emt 0:01:14]} 6. Nc3 {[%emt 0:02:38]} Nf6 {[%emt 0:00:39]} 7. O-O {[%emt 0:00:11]} Bxc3 {[%emt 0:01:06]} 8. bxc3 {[%emt 0:00:04]} O-O {[%emt 0:00:09] A84: Dutch Defence: 2 c4 Miscellaneous.} 9. Ba3 {[%emt 0:05:13]} Re8 {[%emt 0:00:35] [#]} 10. Qc2 $146 {[%emt 0:01:49]} ({Predecessor:} 10. Re1 d6 11. d5 exd5 12. Nh4 Qd7 13. cxd5 Na6 14. c4 Nc5 15. Bh3 g6 16. Qd4 {1-0 Rudolf,M (2358)-Adrian,C (2246) Portoroz op 11th 2017 (6)}) 10... Be4 {[%emt 0:01:14] Black has an edge.} 11. Qc1 {[%emt 0:00:39]} d6 {[%emt 0:01:33]} 12. Bh3 {[%emt 0:06:31]} Bxf3 {[%emt 0:04:56]} 13. exf3 {[%emt 0:00:05]} Nc6 {[%emt 0:00:23]} 14. Qd1 {[%emt 0:05:37]} Na5 {[%emt 0:01:06]} 15. Qd3 {[%emt 0:00:57]} Qd7 {[%emt 0:00:45]} 16. Bb4 {[%emt 0:01:56]} Nb7 {[%emt 0:02:36]} 17. d5 {[%emt 0:07:21]} g6 {[%emt 0:00:48]} 18. a4 {[%emt 0:07:14]} a5 {[%emt 0:00:19]} 19. Ba3 {[%emt 0:00:04]} Qf7 {[%emt 0:00:21]} (19... Qxa4 $6 20. Bxd6 Qd7 21. Be5 $11) (19... exd5 $6 20. cxd5 Qxa4 21. c4 $15 (21. Bxd6 Qd7 $17)) 20. Rfd1 {[%emt 0:06:41]} e5 {[%emt 0:00:23]} 21. Re1 {[%emt 0:00:36]} e4 {[%emt 0:04:55]} 22. Qd1 {[%emt 0:10:18] [#]} (22. fxe4 $17 Nxe4 23. Bc1) 22... exf3 $1 $19 {[%emt 0:01:31]} 23. Qxf3 {[%emt 0:00:20]} Nd7 {[%emt 0:00:12]} 24. Bg2 {[%emt 0:08:32]} Nbc5 {[%emt 0:00:39] Dodges Re6} 25. Bxc5 {[%emt 0:09:09] Strongly threatening Bd4.} Nxc5 {[%emt 0:00:13]} 26. Red1 {[%emt 0:02:09]} (26. Re6 {is a better defense.}) 26... Re4 {[%emt 0:01:19]} 27. Bf1 {[%emt 0:00:28]} Rae8 {[%emt 0:03:16]} 28. Bd3 {[%emt 0:04:30]} Nxd3 {[%emt 0:01:39]} 29. Qxd3 {[%emt 0:00:05]} f4 {[%emt 0:00:06]} 30. Qf1 {[%emt 0:08:45]} f3 {[%emt 0:00:47]} 31. Rd4 {[%emt 0:01:15]} Rxd4 {[%emt 0:03:52]} 32. cxd4 {[%emt 0:00:04][%cal Oc4c5][%mdl 4096] Endgame KQR-KQR} Re2 {[%emt 0:00:17]} 33. Qh3 {[%emt 0:03:51]} (33. c5 {might work better.}) 33... Qe7 {[%emt 0:01:18]} 34. Kf1 {[%emt 0:01:46] Now White is beyond hope.} (34. Rf1 $17) 34... Kg7 {[%emt 0:00:32]} 35. g4 {[%emt 0:01:24]} Qe4 {[%emt 0:02:37]} 36. g5 {[%emt 0:02:17]} Qd3 {[%emt 0:00:11][%cal Oe2e1] [#] ( -> ...Re1+!)} (36... Qxd4 $2 37. Qxf3 Re5 38. Qf6+ Kg8 39. Qd8+ Kf7 40. Ra3 (40. Rc1 $2 Qd2 $19) 40... Qxc4+ 41. Kg2 $19) 37. Kg1 {[%emt 0:00:16]} Qxd4 {[%emt 0:00:13] Active counter play!} (37... Qxc4 $2 {is the wrong capture.} 38. Qxf3 (38. Qd7+ $2 Kf8 $19) 38... Re8 39. h4 $19) 38. Qd7+ {[%emt 0:01:23]} Kf8 {[%emt 0:00:02][%cal Rd4a1]} 39. Rf1 {[%emt 0:00:30]} Re7 {[%emt 0:00:53]} 40. Qh3 {[%emt 0:00:00]} Qf4 {[%emt 0:00:00]} (40... Qxc4 $2 41. Qxf3+ Kg8 42. Qd1 $19) 41. Kh1 {[%emt 0:01:09]} Qxc4 {[%emt 0:02:39] Black is clearly winning.} 42. Qxf3+ {[%emt 0:05:24]} Rf7 {[%emt 0:00:12][%cal Rc4f1]} 43. Qd1 {[%emt 0:03:25]} Rf5 {[%emt 0:00:16][%csl LRd5,LRg5]} 44. f3 {[%emt 0:00:21]} Qxd5 {[%emt 0:00:09]} (44... Rxg5 $2 {too greedy.} 45. Qa1 Kg8 46. Re1 Rxd5 47. Re7 $19) 45. Qe2 {[%emt 0:01:13]} Rxg5 {[%emt 0:00:45]} 46. Rc1 {[%emt 0:00:51]} Qf7 {[%emt 0:00:40]} 47. Qe4 {[%emt 0:00:43]} Rc5 {[%emt 0:00:51]} 48. Re1 {[%emt 0:01:43]} Re5 {[%emt 0:00:16] Weighted Error Value: White=0.35/Black=0.07 (flawless)} 0-1

[Event "61st Mongolian-ch Open 2023"]
[Site "Khovd"]
[Date "2023.05.24"]
[Round "6.4"]
[White "Munguntuul, Batkhuyag"]
[Black "Bulgankhan Ganzorig"]
[Result "1-0"]
[ECO "B90"]
[WhiteElo "2408"]
[BlackElo "2017"]
[Annotator "TA"]
[PlyCount "73"]
[EventDate "2023.05.22"]
[EventType "tourn"]
[EventCountry "MGL"]
[SourceTitle "playchess.com"]
[Source "ChessBase"]
[SourceQuality "1"]
[TimeControl "40/5400+30:1800+30"]

{[%evp 10,73,23,7,15,15,22,7,5,0,12,12,24,0,0,29,31,26,37,44,53,55,49,47,68,27,73,79,79,79,88,99,95,106,88,87,135,145,275,303,273,275,260,250,479,472,472,470,439,456,536,516,786,752,29978,29978,29988,29989,29990,29968,29988,29989,29994,29995,29995,29996]} 1. e4 {[%emt 0:00:03]} c5 {[%emt 0:01:10]} 2. Nf3 {[%emt 0:00:04]} d6 {[%emt 0:00:12]} 3. d4 {[%emt 0:00:03]} cxd4 {[%emt 0:00:17]} 4. Nxd4 {[%emt 0:00:02]} Nf6 {[%emt 0:00:10]} 5. Nc3 {[%emt 0:00:04]} a6 {[%emt 0:00:09]} 6. Nb3 {[%emt 0:00:03]} e6 {[%emt 0:01:05] B90: Sicilian Najdorf: Unusual White 6th moves, 6 Be3 Ng4 and 6 Be3 e5.} 7. g4 {[%emt 0:00:29]} h6 {[%emt 0:02:10]} 8. h4 {[%emt 0:08:55]} b5 {[%emt 0:01:21] The position is equal.} 9. Bg2 {[%emt 0:00:24][%cal Oe4e5] Black must now prevent e5!} Bb7 {[%emt 0:00:08]} 10. a3 {[%emt 0:03:23] [#]} Nfd7 $146 {[%emt 0:01:39][%cal Bf6d7,Bd7e5,Be5c4][%mdl 32]} ({Predecessor:} 10... Nc6 11. Qe2 Ne5 12. g5 hxg5 13. Bxg5 Rc8 14. Rh3 Qc7 15. O-O-O Nc4 16. f4 Nh5 {0-1 Mai,A (2207)-Averin,N (2060) Arandjelovac ASK-4 IM 2022 (8)}) 11. Bf4 {[%emt 0:02:54]} Ne5 {[%emt 0:02:23]} 12. Qe2 {[%emt 0:06:11]} Nbd7 {[%emt 0:09:40]} 13. O-O-O {[%emt 0:00:28]} Qc7 {[%emt 0:00:31]} 14. Rh3 {[%emt 0:06:38]} Be7 {[%emt 0:01:12]} 15. Kb1 {[%emt 0:00:51]} Nc4 {[%emt 0:03:59]} 16. Bc1 {[%emt 0:04:53]} Bf6 {[%emt 0:08:59][%cal Oc4a3]} 17. Na2 {[%emt 0:02:25]} (17. f4 $5 {[%cal Re4e5]}) 17... g6 {[%emt 0:18:07]} (17... g5 $11) 18. f4 {[%emt 0:01:58][%cal Oe4e5] White stays focused until the end.} h5 {[%emt 0:01:28] [#]} 19. e5 $1 {[%emt 0:13:35]} dxe5 {[%emt 0:02:27] [#]} (19... hxg4 20. Qxg4) 20. Rxd7 $1 {[%emt 0:00:11][%mdl 64] Decoy} Qxd7 {[%emt 0:02:03]} (20... Kxd7 $2 21. Bxb7 Ra7 22. Be4 $18) 21. Nc5 $1 {[%emt 0:00:04][%csl LRb7,LRd7]} Qc7 {[%emt 0:00:16][%csl LRc5,LRf4]} 22. Nxb7 {[%emt 0:00:55] Hoping for fxe5. Excellent horsemanship.} (22. Bxb7 Ra7 23. Ne4 (23. Nxa6 $2 Qxb7 24. Nc5 Qc7 $19) 23... Be7 24. gxh5 Rxh5 $17) 22... Rb8 {[%emt 0:02:16]} ({Better is} 22... hxg4 23. Qxg4 Ra7) 23. g5 $36 {[%emt 0:06:25][%mdl 2048] White is in control.} Be7 {[%emt 0:01:43]} (23... Bg7 $16) 24. b3 $18 {[%emt 0:04:19]} Nxa3+ {[%emt 0:08:20]} 25. Bxa3 {[%emt 0:00:42]} Bxa3 {[%emt 0:00:05]} 26. b4 {[%emt 0:05:28]} (26. Qxe5 $6 Qxe5 27. fxe5 Be7 $18) 26... O-O $2 {[%emt 0:04:37]} (26... Rxb7 {was necessary.} 27. Bxb7 (27. Rxa3 Ra7 $16) (27. fxe5 Qb6 $11) 27... Qxb7 28. Qxe5 (28. Rxa3 exf4 29. Qe5 O-O $18) 28... O-O 29. Rxa3 Rc8) 27. Rxa3 {[%emt 0:00:39]} Rxb7 {[%emt 0:00:07]} 28. Bxb7 {[%emt 0:00:16]} ({And not} 28. Rxa6 Ra7 29. Qxb5 (29. Qxe5 $2 {too greedy.} Qxe5 30. fxe5 Rxa6 $19) 29... Rxa6 30. Qxa6 exf4 $14) (28. Qxe5 Qxe5 29. fxe5 Rc7 $11) 28... Qxb7 {[%emt 0:00:03]} 29. Qxe5 {[%emt 0:00:17]} Rd8 {[%emt 0:04:14]} 30. Nc3 {[%emt 0:00:15][%cal Ba2c3,Bc3e4,Be4f6][%mdl 32] Against Qd5} Qh1+ {[%emt 0:01:47]} (30... Qe7 $142 31. Qe4 Qa7) 31. Kb2 {[%emt 0:00:02] Ne4 is the strong threat.} Qxh4 {[%emt 0:01:12]} 32. Rxa6 {[%emt 0:01:12] White mates.} Qg3 {[%emt 0:00:50]} 33. Ne4 {[%emt 0:00:45]} Qg1 {[%emt 0:00:20]} 34. Ra1 {[%emt 0:01:51]} Qg2 {[%emt 0:00:51]} 35. Ra7 {[%emt 0:01:49]} Qg1 {[%emt 0:01:46]} 36. Nf6+ {[%emt 0:00:16]} Kf8 {[%emt 0:00:45] [#]} 37. Rxf7+ $3 {[%emt 0:00:26][%mdl 576] Decoy.   Weighted Error Value: White=0.05 (flawless) /Black=0.49} 1-0

[Event "61st Mongolian-ch Open 2023"]
[Site "Khovd"]
[Date "2023.05.24"]
[Round "6.5"]
[White "Enkhnar, Enkhbaatar"]
[Black "Munkhgal, Gombosuren"]
[Result "0-1"]
[ECO "A13"]
[WhiteElo "2360"]
[BlackElo "2463"]
[Annotator "TA"]
[PlyCount "74"]
[EventDate "2023.05.22"]
[EventType "tourn"]
[EventCountry "MGL"]
[SourceTitle "playchess.com"]
[Source "ChessBase"]
[SourceQuality "1"]
[TimeControl "40/5400+30:1800+30"]

{[%evp 12,74,32,24,54,28,77,55,96,75,77,77,102,87,94,81,91,21,13,0,47,39,40,34,41,39,50,15,28,29,48,60,99,92,116,116,118,92,85,43,53,53,49,0,0,-15,-29,-26,0,0,0,-826,-804,-811,-795,-783,-756,-3041,-2895,-2711,-2671,-2440,-2254,-29996,-29997]} 1. Nf3 {[%emt 0:01:31]} d5 {[%emt 0:00:36]} 2. g3 {[%emt 0:00:08]} Nf6 {[%emt 0:00:30]} 3. Bg2 {[%emt 0:00:19]} e6 {[%emt 0:00:19]} 4. O-O {[%emt 0:00:37]} Be7 {[%emt 0:00:11]} 5. c4 {[%emt 0:00:42]} dxc4 {[%emt 0:04:18]} 6. Qa4+ {[%emt 0:00:39]} Nbd7 {[%emt 0:02:37]} 7. Qxc4 {[%emt 0:01:45]} a6 {[%emt 0:00:05] A13: English Opening: 1...e6.} 8. Qc2 {[%emt 0:01:00]} Rb8 {[%emt 0:03:47]} (8... Ra7 $11 {might be stronger.}) 9. d4 {[%emt 0:03:13]} O-O {[%emt 0:00:53] White is slightly better.} 10. Rd1 {[%emt 0:00:48]} b5 {[%emt 0:11:26]} 11. Ne5 $1 {[%emt 0:03:08]} Bb7 {[%emt 0:00:34]} 12. Nc6 {[%emt 0:04:39]} Bxc6 {[%emt 0:00:04]} 13. Bxc6 {[%emt 0:00:05] [#]} Nd5 $146 {[%emt 0:00:29]} ({Predecessor:} 13... Nb6 14. a3 Nc4 15. b3 Na5 16. Bf3 c6 17. Bb2 Rc8 18. Nc3 Qb6 19. e3 Nb7 {1-0 Wojtaszek,R (2682)-Efremov,V (2120) EU-ch 23rd Vrnjacka Banja 2023 (4)}) 14. Bxd5 {[%emt 0:04:06]} ({Better is} 14. Bd2 $16) 14... exd5 $11 {[%emt 0:00:05]} 15. Bf4 {[%emt 0:00:02]} Bd6 {[%emt 0:06:21]} (15... Rc8 $1 $11) 16. Bxd6 {[%emt 0:02:22]} cxd6 {[%emt 0:00:03]} 17. Qc6 {[%emt 0:02:49][%csl LRa6,LRd5,LRd6]} Nf6 {[%emt 0:00:06]} 18. Qxa6 {[%emt 0:01:42]} Re8 {[%emt 0:02:00]} 19. e3 {[%emt 0:04:35]} Qd7 {[%emt 0:00:20] Threatens to win with ...Ra8.} 20. Qa3 {[%emt 0:01:18]} Qh3 {[%emt 0:18:34]} 21. Nd2 $1 {[%emt 0:00:47]} Ng4 {[%emt 0:02:54] [#]} 22. Nf1 {[%emt 0:00:34]} (22. Qxd6 $2 {gets mated.} Qxh2+ 23. Kf1 Qxf2#) 22... Re6 {[%emt 0:02:01][%cal Og4h2] ...Nxh2! would be deadly.} 23. Rd2 {[%emt 0:02:03]} h5 {[%emt 0:04:51]} 24. Qb3 {[%emt 0:01:30]} Nf6 {[%emt 0:00:13]} 25. a4 {[%emt 0:03:37]} Ne4 {[%emt 0:02:26]} 26. Rc2 {[%emt 0:05:18] Hoping for f3.} Qf5 {[%emt 0:01:18]} 27. a5 {[%emt 0:00:59]} (27. f4 $1 $14) 27... Ng5 {[%emt 0:17:39]} 28. Nd2 {[%emt 0:20:31]} (28. f4 $5 {[%cal Rf4g5]} Nh3+ 29. Kg2 $11) 28... Nh3+ {[%emt 0:10:07]} 29. Kg2 {[%emt 0:00:14]} Qxf2+ {[%emt 0:00:23]} 30. Kxh3 {[%emt 0:00:28]} g5 $40 {[%emt 0:01:31][%cal Bg7g5,Bg5g4][%mdl 160] Black is up to no good.} 31. Rf1 $2 {[%emt 0:02:52][%mdl 8192]} (31. Qxd5 $2 {loses.} g4+ 32. Kh4 Qxh2+ 33. Kg5 Rg6+ 34. Kf4 Qf2+ 35. Nf3 Qxc2 $19) (31. Ne4 $11 Qf5+ 32. Kg2 Qxe4+ 33. Kg1) 31... g4+ $19 {[%emt 0:00:29]} 32. Kh4 {[%emt 0:00:04]} Qxh2+ {[%emt 0:00:07]} 33. Kg5 {[%emt 0:00:02]} Qxg3 {[%emt 0:04:07]} 34. Ne4 {[%emt 0:09:14] [#]} Rg6+ $1 {[%emt 0:01:10]} ({Weaker is} 34... Rxe4 35. Rxf7 Kh8 36. Rf6 Rg8+ 37. Rg6 $11) 35. Kf5 {[%emt 0:00:09]} Qh3 {[%emt 0:01:02] ( -> ...g3+)} 36. Ng3 {[%emt 0:05:56]} Qh4 {[%emt 0:01:59][%csl Gg6][%cal Rh4g5]} 37. Ne4 {[%emt 0:00:10] Wards off Qg5+} g3 {[%emt 0:00:51] Excellently played by Munkhgal!   Weighted Error Value: White=0.50/Black=0.11 (very precise)} 0-1

[Event "61st Mongolian-ch Open 2023"]
[Site "Khovd"]
[Date "2023.05.24"]
[Round "6.6"]
[White "Bilguun, Sumiya"]
[Black "Munkhzul, Turmunkh"]
[Result "1-0"]
[ECO "B25"]
[WhiteElo "2474"]
[BlackElo "2318"]
[Annotator "TA"]
[PlyCount "115"]
[EventDate "2023.05.22"]
[EventType "tourn"]
[EventCountry "MGL"]
[SourceTitle "playchess.com"]
[Source "ChessBase"]
[SourceQuality "1"]
[TimeControl "40/5400+30:1800+30"]

{[%evp 16,115,9,0,1,-1,0,0,10,0,26,19,21,-13,-13,-13,-8,-15,0,0,15,0,13,39,33,35,98,25,50,42,109,109,114,116,102,99,115,107,133,108,125,126,177,160,243,240,281,281,308,308,308,281,281,281,328,281,343,308,283,297,302,295,337,325,409,389,428,427,428,419,417,406,486,482,502,502,539,484,505,487,535,339,505,339,5189,5182,2334,3468,2360,2151,2293,2189,29971,29973,29974,29975,29976,29977,29976,29973,29973,29969]} 1. e4 {[%emt 0:00:05]} c5 {[%emt 0:00:10]} 2. Nc3 {[%emt 0:00:04]} a6 {[%emt 0:00:20]} 3. g3 {[%emt 0:00:21]} Nc6 {[%emt 0:00:29]} 4. Bg2 {[%emt 0:00:19]} Nf6 {[%emt 0:00:56]} 5. d3 {[%emt 0:03:05]} d6 {[%emt 0:04:14]} 6. f4 {[%emt 0:00:12]} g6 {[%emt 0:01:26]} 7. h3 {[%emt 0:00:45]} Bg7 {[%emt 0:00:57]} 8. Nf3 {[%emt 0:00:15]} O-O {[%emt 0:02:54]} 9. O-O {[%emt 0:00:15]} b5 {[%emt 0:06:25][%cal Bb7b5,Bb5b4][%mdl 32] outshines the older 9...Rb8. B25: Closed Sicilian: 3 g3, lines without early Be3.} 10. g4 {[%emt 0:00:12]} b4 {[%emt 0:06:01]} 11. Ne2 {[%emt 0:00:28]} Bb7 {[%emt 0:01:45] The position is equal.} 12. Ng3 {[%emt 0:00:18]} Qc7 {[%emt 0:01:49] [#]} 13. g5 $146 {[%emt 0:00:44]} ({Predecessor:} 13. c3 a5 14. Be3 Nd7 15. Qd2 Ba6 16. h4 Rab8 17. h5 bxc3 18. bxc3 a4 19. hxg6 fxg6 {0-1 Pimenov,V (1828)-Zhukov,V (2141) Kostroma Volga Cup op 2010 (8)}) 13... Nd7 {[%emt 0:01:55][%cal Od6d5]} 14. Kh1 {[%emt 0:10:01]} Nd4 {[%emt 0:05:55]} 15. Nxd4 {[%emt 0:01:09]} cxd4 {[%emt 0:00:30]} 16. Bd2 {[%emt 0:02:54]} a5 {[%emt 0:02:08]} 17. h4 {[%emt 0:01:09][%cal Bh3h4,Bh4h5][%mdl 32]} Nc5 {[%emt 0:03:17]} 18. b3 {[%emt 0:03:22]} Rfc8 {[%emt 0:06:09][%cal Od6d5]} 19. h5 {[%emt 0:01:08]} Nd7 {[%emt 0:05:33]} 20. Rc1 {[%emt 0:00:35]} e6 {[%emt 0:03:35]} (20... Ra6 $14) 21. Qe2 {[%emt 0:03:35]} ({White should try} 21. Qg4 $16) 21... Qd8 {[%emt 0:05:26]} 22. f5 {[%emt 0:04:24][%cal Bf4f5,Bf5f6][%mdl 32] Black must now prevent Qf2.} Ne5 {[%emt 0:04:49] [#] White stays focused until the end.} ({Better is} 22... Rc5 $14) 23. hxg6 $1 $16 {[%emt 0:01:02]} fxg6 {[%emt 0:01:05]} ({Not} 23... hxg6 24. Qf2 $14) 24. f6 {[%emt 0:00:54]} ({Of course not} 24. fxe6 $6 Qe7 $11) 24... Bf8 {[%emt 0:00:40]} 25. Qf2 {[%emt 0:01:54]} Nf7 {[%emt 0:11:29]} 26. Qxd4 {[%emt 0:00:41]} Rc5 {[%emt 0:00:58]} 27. Qf2 $36 {[%emt 0:01:54][%mdl 2048] White is on the roll. White is more active.} a4 {[%emt 0:04:10]} 28. Be3 {[%emt 0:05:21]} Rb5 {[%emt 0:01:26]} (28... Rca5 $16 29. Bb6 Qb8) 29. Ne2 $18 {[%emt 0:00:49]} e5 {[%emt 0:04:35]} (29... Rxg5 $16 30. Bxg5 Nxg5) 30. c4 {[%emt 0:00:43]} Rba5 {[%emt 0:04:58]} 31. Bb6 {[%emt 0:00:25]} Qd7 {[%emt 0:00:12]} 32. Bxa5 {[%emt 0:00:05]} Rxa5 {[%emt 0:00:07]} 33. Qg3 {[%emt 0:00:17]} Bc8 {[%emt 0:00:22]} 34. Ng1 {[%emt 0:00:26]} axb3 {[%emt 0:01:43]} 35. axb3 {[%emt 0:00:06]} Ra3 {[%emt 0:00:33]} 36. Rb1 {[%emt 0:01:47]} Qa7 {[%emt 0:00:31]} 37. Bh3 {[%emt 0:00:50]} Bxh3 {[%emt 0:00:33]} 38. Nxh3 {[%emt 0:00:12]} ({Much less strong is} 38. Qxh3 Nxg5 39. Qg4 Nf7 $18) 38... Qd4 {[%emt 0:00:39]} 39. Rf2 {[%emt 0:03:49][%cal Bf1f2,Bf2b2,Bb2h2][%mdl 32] Inhibits Ra2.} Qc3 {[%emt 0:01:34]} 40. Rfb2 {[%emt 0:00:00]} Nd8 {[%emt 0:00:00]} 41. Ng1 {[%emt 0:03:32]} Qd4 {[%emt 0:05:09]} 42. Rh2 {[%emt 0:01:18]} Qa7 {[%emt 0:05:23]} 43. Qg4 {[%emt 0:13:09] Prevents Ne6.} Qf7 {[%emt 0:02:34]} 44. Nf3 {[%emt 0:01:07]} Ne6 {[%emt 0:00:54]} 45. Ne1 {[%emt 0:00:39]} h5 {[%emt 0:01:58]} 46. gxh6 {[%emt 0:00:25][%cal Bg5h6,Bh6h7][%mdl 32]} Qxf6 {[%emt 0:00:52]} 47. Nf3 {[%emt 0:02:22][%cal Be1f3,Bf3g5,Bg5e6][%mdl 32]} Nf4 {[%emt 0:01:40]} 48. Ng5 {[%emt 0:08:20][%cal Og4d7] Qd7! would kill now.} Kh8 {[%emt 0:04:27]} (48... Ra8 {was necessary.} 49. Rg1 Be7) 49. h7 {[%emt 0:05:07][%cal Og4d7] Qd7! is the strong threat.} Nh5 $2 {[%emt 0:04:56]} (49... Ra8 50. Rf1 Be7) 50. Rg1 {[%emt 0:05:12] Threatening mate with Rxh5.} Bg7 {[%emt 0:04:08]} 51. Qc8+ {[%emt 0:01:40]} Bf8 {[%emt 0:01:03]} 52. Qe6 {[%emt 0:17:02]} Qxe6 {[%emt 0:09:20]} 53. Nxe6 {[%emt 0:00:18][%mdl 64] [#] Discovered Attack} Bh6 {[%emt 0:00:27]} 54. Rxg6 {[%emt 0:00:39] White mates.} Ra1+ {[%emt 0:00:14]} 55. Rg1 {[%emt 0:00:33]} Rxg1+ {[%emt 0:00:21]} 56. Kxg1 {[%emt 0:00:05]} Be3+ {[%emt 0:00:05]} 57. Kg2 {[%emt 0:00:16]} Nf6 {[%emt 0:00:06]} 58. Nf8 {[%emt 0:00:12] Weighted Error Value: White=0.19 (very precise) /Black=0.30} 1-0